lending/lending_fUSD_20260110
["ID","MTS","AMOUNT","RATE_DAILY","PERIOD"]
[401197243,1768037445574,-150.0,0.000168,2]
[401197244,1768037445585,-178.71892515,0.000168,2]
[401197245,1768037445596,-216.87423394,0.000168,2]
[401197246,1768037445606,-1000.0,0.000168,2]
[401197247,1768037445616,-150.0,0.000168,2]
[401197248,1768037445627,-150.0,0.000168,2]
[401197249,1768037445639,-229.31905987,0.000168,2]
[401197250,1768037445650,-150.0,0.000168,2]
[401197251,1768037445663,-150.0,0.00016814,2]
[401197252,1768037445677,-189.54348929,0.00016818,2]
[401197253,1768037445687,-255.68743637,0.00016818,2]
[401197254,1768037445698,-178.71892515,0.00016818,2]
[401197255,1768037445708,-216.87423394,0.00016818,2]
[401197256,1768037445719,-229.31905987,0.00016818,2]
[401197257,1768037445729,-8882.6885148,0.00016834,2]
[401197258,1768037445741,-189.54348929,0.00016836,2]
[401197259,1768037445752,-255.68743637,0.00016836,2]
[401197260,1768037445763,-178.71892515,0.00016836,2]
[401197261,1768037445774,-216.87423394,0.00016836,2]
[401197262,1768037445784,-229.31905987,0.00016836,2]
[401197263,1768037445795,-189.54348929,0.00016855,2]
[401197264,1768037445806,-255.68743637,0.00016855,2]
[401197265,1768037445816,-178.71892515,0.00016855,2]
[401197266,1768037445827,-216.87423394,0.00016855,2]
[401197267,1768037445838,-150.0,0.00016855,2]
[401197268,1768037445848,-229.31905987,0.00016855,2]
[401197269,1768037445858,-150.0,0.00016867,2]
[401197270,1768037445869,-189.54348929,0.00016873,2]
[401197271,1768037445879,-255.68743637,0.00016873,2]
[401197272,1768037445890,-178.71892515,0.00016873,2]
[401197273,1768037445900,-216.87423394,0.00016873,2]
[401197274,1768037445910,-229.31905987,0.00016873,2]
[401197275,1768037445921,-150.0,0.00016875,2]
[401197276,1768037445931,-171.19946989,0.00016879,2]
[401197277,1768037445941,-529.6520944,0.00016887,2]
[401197278,1768037445952,-1887.20841984,0.00016887,2]
[401197279,1768037445962,-805.55508344,0.00016889,2]
[401197280,1768037445973,-189.54348929,0.00016891,2]
[401197281,1768037445983,-255.68743637,0.00016891,2]
[401197282,1768037445994,-178.71892515,0.00016891,2]
[401197283,1768037446004,-216.87423394,0.00016891,2]
[401197284,1768037446014,-229.31905987,0.00016891,2]
[401197285,1768037446025,-150.0,0.00016895,2]
[401197286,1768037446035,-189.54348929,0.00016909,2]
[401197287,1768037446045,-255.68743637,0.00016909,2]
[401197288,1768037446055,-178.71892515,0.00016909,2]
[401197289,1768037446065,-216.87423394,0.00016909,2]
[401197290,1768037446075,-229.31905987,0.00016909,2]
[401197291,1768037446086,-150.0,0.0001692,2]
[401197292,1768037446097,-500.0,0.00016921,2]
[401197293,1768037446107,-337.82,0.00016922,2]
[401197294,1768037446117,-5885.93,0.00016922,2]
[401197295,1768037446127,-9999.99,0.00016922,2]
[401197296,1768037446137,-3816.58,0.00016922,2]
[401197297,1768037446147,-150.99,0.00016922,2]
[401197298,1768037446157,-746.01,0.00016922,2]
[401197299,1768037446167,-9999.99,0.00016922,2]
[401197300,1768037446178,-9999.99,0.00016922,2]
[401197301,1768037446187,-299.99,0.00016922,4]
[401197302,1768037446197,-1142.62,0.00016922,2]
[401197303,1768037446207,-426.28,0.00016922,2]
[401197304,1768037446217,-3121.21,0.00016922,2]
[401197305,1768037446227,-4617.96,0.00016922,2]
[401197306,1768037446237,-168.0,0.00016922,2]
[401197307,1768037446248,-189.54348929,0.00016927,2]
[401197308,1768037446259,-255.68743637,0.00016927,2]
[401197309,1768037446272,-178.71892515,0.00016927,2]
[401197310,1768037446282,-216.87423394,0.00016927,2]
[401197311,1768037446292,-229.31905987,0.00016927,2]
[401197312,1768037446303,-455.0,0.00016932,2]
[401197313,1768037446313,-150.0,0.00016933,2]
[401197314,1768037446324,-150.0,0.00016936,2]
[401197315,1768037446335,-189.54348929,0.00016945,2]
[401197316,1768037446346,-255.68743637,0.00016945,2]
[401197318,1768037446356,-178.71892515,0.00016945,2]
[401197319,1768037446366,-216.87423394,0.00016945,2]
[401197320,1768037446376,-229.31905987,0.00016945,2]
[401197321,1768037446386,-1000.0,0.00016952,2]
[401197322,1768037446396,-500.0,0.00016959,2]
[401197325,1768037446407,-189.54348929,0.00016964,2]
[401197327,1768037446417,-255.68743637,0.00016964,2]
[401197328,1768037446428,-178.71892515,0.00016964,2]
[401197329,1768037446438,-216.87423394,0.00016964,2]
[401197330,1768037446448,-229.31905987,0.00016964,2]
[401197331,1768037446458,-150.0,0.00016977,2]
[401197332,1768037446469,-189.54348929,0.00016982,2]
[401197333,1768037446479,-255.68743637,0.00016982,2]
[401197334,1768037446490,-178.71892515,0.00016982,2]
[401197335,1768037446500,-216.87423394,0.00016982,2]
[401197336,1768037446586,-229.31905987,0.00016982,2]
[401197337,1768037446596,-500.0,0.00016986,2]
[401197338,1768037446606,-600.0,0.00016986,2]
[401197339,1768037446616,-396668.31,0.00016986,2]
[401197340,1768037446626,-150.0,0.00016987,2]
[401197341,1768037446637,-189.54348929,0.00017,2]
[401197342,1768037446649,-255.68743637,0.00017,2]
[401197343,1768037446659,-178.71892515,0.00017,2]
[401197344,1768037446671,-216.87423394,0.00017,2]
[401197345,1768037446680,-150.0,0.00017,2]
[401197346,1768037446691,-150.0,0.00017,2]
[401197347,1768037446702,-229.31905987,0.00017,2]
[401197348,1768037446711,-2488.7346141,0.00017,2]
[401197349,1768037446721,-210.20353926,0.00017,2]
[401197350,1768037446733,-189.54348929,0.00017018,2]
[401197351,1768037446744,-255.68743637,0.00017018,2]
[401197352,1768037446755,-178.71892515,0.00017018,2]
[401197353,1768037446766,-216.87423394,0.00017018,2]
[401197354,1768037446778,-150.0,0.00017018,2]
[401197355,1768037446789,-229.31905987,0.00017018,2]
[401197356,1768037446800,-189.54348929,0.00017036,2]
[401197357,1768037446812,-255.68743637,0.00017036,2]
[401197358,1768037446824,-178.71892515,0.00017036,2]
[401197359,1768037446834,-216.87423394,0.00017036,2]
[401197360,1768037446843,-229.31905987,0.00017036,2]
[401197361,1768037446859,-189.54348929,0.00017055,2]
[401197362,1768037446870,-255.68743637,0.00017055,2]
[401197363,1768037446881,-178.71892515,0.00017055,2]
[401197364,1768037446892,-216.87423394,0.00017055,2]
[401197365,1768037446903,-229.31905987,0.00017055,2]
[401197366,1768037446914,-150.0,0.00017059,2]
[401197367,1768037446926,-150.0,0.00017067,2]
[401197368,1768037446937,-189.54348929,0.00017073,2]
[401197369,1768037446947,-255.68743637,0.00017073,2]
[401197370,1768037446958,-178.71892515,0.00017073,2]
[401197371,1768037446969,-216.87423394,0.00017073,2]
[401197372,1768037446979,-229.31905987,0.00017073,2]
[401197373,1768037446990,-1000.0,0.0001708,2]
[401197374,1768037447000,-1887.20841984,0.0001709,2]
[401197375,1768037447010,-623.0,0.0001709,2]
[401197376,1768037447021,-189.54348929,0.00017091,2]
[401197377,1768037447031,-255.68743637,0.00017091,2]
[401197378,1768037447042,-178.71892515,0.00017091,2]
[401197379,1768037447053,-216.87423394,0.00017091,2]
[401197380,1768037447065,-229.31905987,0.00017091,2]
[401197381,1768037447076,-150.0,0.000171,2]
[401197382,1768037447086,-150.0,0.000171,2]
[401197383,1768037447097,-150.0,0.000171,2]
[401197384,1768037447107,-1069.8949683,0.000171,2]
[401197385,1768037447116,-151.0,0.000171,2]
[401197386,1768037447126,-151.0,0.000171,2]
[401197387,1768037447137,-151.0,0.000171,2]
[401197388,1768037447148,-151.0,0.000171,2]
[401197389,1768037447158,-151.0,0.000171,2]
[401197390,1768037447167,-151.0,0.000171,2]
[401197391,1768037447178,-151.0,0.000171,2]
[401197392,1768037447188,-151.0,0.000171,2]
[401197393,1768037447198,-151.0,0.000171,2]
[401197394,1768037447208,-151.0,0.000171,2]
[401197395,1768037447218,-151.0,0.000171,2]
[401197396,1768037447228,-232.784309,0.000171,2]
[401197397,1768037447243,-189.54348929,0.00017109,2]
[401197398,1768037447253,-255.68743637,0.00017109,2]
[401197399,1768037447264,-178.71892515,0.00017109,2]
[401197400,1768037447277,-216.87423394,0.00017109,2]
[401197401,1768037447288,-229.31905987,0.00017109,2]
[401197402,1768037447297,-189.54348929,0.00017127,2]
[401197403,1768037447307,-255.68743637,0.00017127,2]
[401197404,1768037447318,-178.71892515,0.00017127,2]
[401197405,1768037447329,-216.87423394,0.00017127,2]
[401197406,1768037447339,-229.31905987,0.00017127,2]
[401197407,1768037447351,-150.0,0.00017133,2]
[401197408,1768037447363,-171.19946989,0.00017134,2]
[401197409,1768037447373,-1421.8164319,0.00017139,2]
[401197410,1768037447385,-150.0,0.00017141,2]
[401197411,1768037447396,-189.54348929,0.00017145,2]
[401197412,1768037447407,-255.68743637,0.00017145,2]
[401197413,1768037447417,-178.71892515,0.00017145,2]
[401197414,1768037447428,-216.87423394,0.00017145,2]
[401197415,1768037447438,-229.31905987,0.00017145,2]
[401197416,1768037447449,-1000.0,0.00017156,2]
[401197417,1768037447459,-189.54348929,0.00017164,2]
[401197418,1768037447470,-255.68743637,0.00017164,2]
[401197419,1768037447481,-178.71892515,0.00017164,2]
[401197420,1768037447493,-216.87423394,0.00017164,2]
[401197421,1768037447505,-229.31905987,0.00017164,2]
[401197422,1768037447515,-1421.8164319,0.00017168,2]
[401197423,1768037447525,-561.2,0.00017171,2]
[401197424,1768037447535,-200.0,0.00017174,2]
[401197425,1768037447546,-1000.0,0.00017181,2]
[401197426,1768037447557,-189.54348929,0.00017182,2]
[401197427,1768037447567,-255.68743637,0.00017182,2]
[401197428,1768037447577,-178.71892515,0.00017182,2]
[401197429,1768037447588,-216.87423394,0.00017182,2]
[401197430,1768037447599,-150.0,0.00017182,2]
[401197431,1768037447609,-229.31905987,0.00017182,2]
[401197432,1768037447623,-189.54348929,0.000172,2]
[401197433,1768037447634,-255.68743637,0.000172,2]
[401197434,1768037447646,-178.71892515,0.000172,2]
[401197435,1768037447656,-216.87423394,0.000172,2]
[401197436,1768037447666,-150.0,0.000172,2]
[401197437,1768037447677,-150.0,0.000172,2]
[401197438,1768037447688,-229.31905987,0.000172,2]
[401197439,1768037447699,-150.0,0.00017212,2]
[401197440,1768037447709,-189.54348929,0.00017218,2]
[401197441,1768037447722,-255.68743637,0.00017218,2]
[401197442,1768037447732,-178.71892515,0.00017218,2]
[401197443,1768037447743,-216.87423394,0.00017218,2]
[401197444,1768037447753,-229.31905987,0.00017218,2]
[401197445,1768037447763,-623.0,0.00017222,2]
[401197446,1768037447773,-150.0,0.00017223,2]
[401197447,1768037447783,-189.54348929,0.00017236,2]
[401197448,1768037447794,-255.68743637,0.00017236,2]
[401197449,1768037447804,-178.71892515,0.00017236,2]
[401197450,1768037447814,-216.87423394,0.00017236,2]
[401197451,1768037447825,-229.31905987,0.00017236,2]
[401197452,1768037447837,-561.2,0.00017246,2]
[401197453,1768037447848,-189.54348929,0.00017255,2]
[401197454,1768037447858,-255.68743637,0.00017255,2]
[401197455,1768037447870,-178.71892515,0.00017255,2]
[401197456,1768037447880,-216.87423394,0.00017255,2]
[401197457,1768037447891,-229.31905987,0.00017255,2]
[401197458,1768037447902,-150.0,0.00017264,2]
[401197459,1768037447913,-150.0,0.00017267,2]
[401197460,1768037447924,-187.78006525,0.00017272,2]
[401197461,1768037447936,-197.9969081,0.00017272,2]
[401197462,1768037447947,-151.0,0.00017272,2]
[401197463,1768037447957,-514.84070869,0.00017272,2]
[401197464,1768037447967,-189.54348929,0.00017273,2]
[401197465,1768037447977,-255.68743637,0.00017273,2]
[401197466,1768037447992,-178.71892515,0.00017273,2]
[401197467,1768037448003,-216.87423394,0.00017273,2]
[401197468,1768037448018,-229.31905987,0.00017273,2]
[401197469,1768037448028,-150.0,0.0001728,2]
[401197470,1768037448038,-150.0,0.00017287,2]
[401197471,1768037448048,-189.54348929,0.00017291,2]
[401197472,1768037448058,-255.68743637,0.00017291,2]
[401197473,1768037448069,-178.71892515,0.00017291,2]
[401197474,1768037448080,-216.87423394,0.00017291,2]
[401197475,1768037448091,-229.31905987,0.00017291,2]
[401197476,1768037448101,-1887.20841984,0.00017292,2]
[401197477,1768037448111,-159.16121496,0.00017296,2]
[401197478,1768037448122,-150.0,0.00017305,2]
[401197479,1768037448132,-500.0,0.00017308,2]
[401197480,1768037448143,-189.54348929,0.00017309,2]
[401197481,1768037448153,-255.68743637,0.00017309,2]
[401197482,1768037448163,-178.71892515,0.00017309,2]
[401197483,1768037448173,-216.87423394,0.00017309,2]
[401197484,1768037448184,-229.31905987,0.00017309,2]
[401197485,1768037448194,-561.2,0.00017322,2]
[401197486,1768037448204,-150.0,0.00017325,2]
[401197487,1768037448218,-189.54348929,0.00017327,2]
[401197488,1768037448229,-255.68743637,0.00017327,2]
[401197489,1768037448239,-178.71892515,0.00017327,2]
[401197490,1768037448250,-216.87423394,0.00017327,2]
[401197491,1768037448261,-229.31905987,0.00017327,2]
[401197492,1768037448272,-150.0,0.00017333,2]
[401197493,1768037448284,-659.3281205,0.00017345,2]
[401197494,1768037448295,-189.54348929,0.00017345,2]
[401197495,1768037448305,-255.68743637,0.00017345,2]
[401197496,1768037448316,-178.71892515,0.00017345,2]
[401197497,1768037448326,-216.87423394,0.00017345,2]
[401197498,1768037448339,-150.0,0.00017345,2]
[401197499,1768037448350,-229.31905987,0.00017345,2]
[401197500,1768037448361,-164.0,0.0001736,2]
[401197501,1768037448371,-181.0,0.0001736,2]
[401197502,1768037448382,-189.54348929,0.00017364,2]
[401197503,1768037448392,-255.68743637,0.00017364,2]
[401197504,1768037448402,-178.71892515,0.00017364,2]
[401197505,1768037448411,-216.87423394,0.00017364,2]
[401197506,1768037448425,-229.31905987,0.00017364,2]
[401197507,1768037448435,-189.54348929,0.00017382,2]
[401197508,1768037448445,-255.68743637,0.00017382,2]
[401197509,1768037448455,-178.71892515,0.00017382,2]
[401197510,1768037448465,-216.87423394,0.00017382,2]
[401197511,1768037448476,-229.31905987,0.00017382,2]
[401197512,1768037448486,-150.0,0.00017386,2]
[401197513,1768037448496,-171.19946989,0.0001739,2]
[401197514,1768037448506,-529.6520944,0.00017394,2]
[401197515,1768037448516,-561.2,0.00017397,2]
[401197516,1768037448526,-189.54348929,0.000174,2]
[401197517,1768037448535,-255.68743637,0.000174,2]
[401197518,1768037448545,-150.0,0.000174,2]
[401197519,1768037448555,-178.71892515,0.000174,2]
[401197520,1768037448565,-216.87423394,0.000174,2]
[401197521,1768037448575,-150.0,0.000174,2]
[401197522,1768037448586,-150.0,0.000174,2]
[401197523,1768037448597,-229.31905987,0.000174,2]
[401197524,1768037448607,-150.0,0.000174,2]
[401197525,1768037448617,-150.0,0.00017409,2]
[401197526,1768037448628,-189.54348929,0.00017418,2]
[401197527,1768037448639,-255.68743637,0.00017418,2]
[401197528,1768037448649,-178.71892515,0.00017418,2]
[401197529,1768037448660,-216.87423394,0.00017418,2]
[401197530,1768037448670,-229.31905987,0.00017418,2]
[401197531,1768037448681,-150.0,0.00017427,2]
[401197532,1768037448691,-189.54348929,0.00017436,2]
[401197533,1768037448702,-255.68743637,0.00017436,2]
[401197534,1768037448712,-178.71892515,0.00017436,2]
[401197535,1768037448722,-216.87423394,0.00017436,2]
[401197536,1768037448733,-229.31905987,0.00017436,2]
[401197537,1768037448743,-150.0,0.00017437,2]
[401197538,1768037448753,-189.54348929,0.00017455,2]
[401197539,1768037448762,-255.68743637,0.00017455,2]
[401197540,1768037448773,-178.71892515,0.00017455,2]
[401197541,1768037448783,-216.87423394,0.00017455,2]
[401197542,1768037448793,-229.31905987,0.00017455,2]
[401197543,1768037448803,-150.0,0.00017467,2]
[401197544,1768037448824,-150.0,0.00017468,2]
[401197545,1768037448839,-561.2,0.00017472,2]
[401197546,1768037448849,-189.54348929,0.00017473,2]
[401197547,1768037448860,-255.68743637,0.00017473,2]
[401197548,1768037448870,-178.71892515,0.00017473,2]
[401197549,1768037448882,-216.87423394,0.00017473,2]
[401197550,1768037448895,-229.31905987,0.00017473,2]
[401197551,1768037448906,-189.54348929,0.00017491,2]
[401197552,1768037448916,-255.68743637,0.00017491,2]
[401197553,1768037448928,-178.71892515,0.00017491,2]
[401197554,1768037448938,-216.87423394,0.00017491,2]
[401197555,1768037448948,-229.31905987,0.00017491,2]
[401197556,1768037448959,-1887.20841984,0.00017495,2]
[401197557,1768037448968,-2000.0,0.000175,2]
[401197558,1768037448978,-151.0,0.000175,2]
[401197559,1768037448988,-151.0,0.000175,2]
[401197560,1768037448999,-769.26786,0.000175,2]
[401197561,1768037449009,-151.0,0.000175,2]
[401197562,1768037449019,-769.26786,0.000175,2]
[401197563,1768037449030,-151.0,0.000175,2]
[401197564,1768037449040,-151.0,0.000175,2]
[401197565,1768037449050,-769.26786,0.000175,2]
[401197566,1768037449060,-490.932292,0.000175,2]
[401197567,1768037449071,-769.26786,0.000175,2]
[401197568,1768037449081,-151.0,0.000175,2]
[401197569,1768037449091,-490.932292,0.000175,2]
[401197570,1768037449101,-490.932292,0.000175,2]
[401197571,1768037449111,-151.0,0.000175,2]
[401197572,1768037449121,-189.54348929,0.00017509,2]
[401197573,1768037449132,-255.68743637,0.00017509,2]
[401197574,1768037449143,-178.71892515,0.00017509,2]
[401197575,1768037449153,-216.87423394,0.00017509,2]
[401197576,1768037449163,-150.0,0.00017509,2]
[401197577,1768037449174,-229.31905987,0.00017509,2]
[401197578,1768037449184,-189.54348929,0.00017527,2]
[401197579,1768037449194,-255.68743637,0.00017527,2]
[401197580,1768037449205,-178.71892515,0.00017527,2]
[401197581,1768037449215,-216.87423394,0.00017527,2]
[401197582,1768037449229,-229.31905987,0.00017527,2]
[401197583,1768037449239,-150.0,0.00017533,2]
[401197584,1768037449250,-600.0,0.00017534,2]
[401197585,1768037449261,-189.54348929,0.00017545,2]
[401197586,1768037449272,-255.68743637,0.00017545,2]
[401197587,1768037449283,-178.71892515,0.00017545,2]
[401197588,1768037449293,-216.87423394,0.00017545,2]
[401197589,1768037449303,-229.31905987,0.00017545,2]
[401197590,1768037449314,-561.2,0.00017548,2]
[401197591,1768037449324,-150.0,0.0001755,2]
[401197592,1768037449337,-150.0,0.0001755,2]
[401197593,1768037449346,-189.54348929,0.00017564,2]
[401197594,1768037449356,-255.68743637,0.00017564,2]
[401197595,1768037449370,-178.71892515,0.00017564,2]
[401197596,1768037449380,-216.87423394,0.00017564,2]
[401197597,1768037449390,-229.31905987,0.00017564,2]
[401197598,1768037449400,-317.2501281,0.00017571,2]
[401197599,1768037449410,-189.54348929,0.00017582,2]
[401197600,1768037449421,-255.68743637,0.00017582,2]
[401197601,1768037449432,-178.71892515,0.00017582,2]
[401197602,1768037449442,-216.87423394,0.00017582,2]
[401197603,1768037449453,-229.31905987,0.00017582,2]
[401197604,1768037449463,-151.05982543,0.00017589,2]
[401197605,1768037449474,-150.0,0.00017589,2]
[401197606,1768037449485,-150.0,0.00017589,2]
[401197607,1768037449495,-150.0,0.00017589,2]
[401197608,1768037449504,-233.86226435,0.00017589,2]
[401197609,1768037449516,-150.0,0.00017589,2]
[401197610,1768037449527,-150.0,0.00017589,2]
[401197611,1768037449538,-150.0,0.00017589,2]
[401197612,1768037449548,-150.0,0.00017589,2]
[401197613,1768037449558,-150.7951792,0.00017589,2]
[401197614,1768037449568,-150.0,0.00017591,2]
[401197615,1768037449577,-189.54348929,0.000176,2]
[401197616,1768037449587,-255.68743637,0.000176,2]
[401197617,1768037449597,-178.71892515,0.000176,2]
[401197618,1768037449607,-216.87423394,0.000176,2]
[401197619,1768037449617,-150.0,0.000176,2]
[401197620,1768037449627,-150.0,0.000176,2]
[401197621,1768037449637,-229.31905987,0.000176,2]
[401197622,1768037449646,-1000.0,0.000176,2]
[401197623,1768037449657,-317.2501281,0.00017601,2]
[401197624,1768037449666,-189.54348929,0.00017618,2]
[401197625,1768037449676,-255.68743637,0.00017618,2]
[401197626,1768037449686,-178.71892515,0.00017618,2]
[401197627,1768037449696,-216.87423394,0.00017618,2]
[401197628,1768037449707,-229.31905987,0.00017618,2]
[401197629,1768037449717,-561.2,0.00017623,2]
[401197630,1768037449726,-150.0,0.00017632,2]
[401197631,1768037449736,-189.54348929,0.00017636,2]
[401197632,1768037449746,-255.68743637,0.00017636,2]
[401197633,1768037449760,-178.71892515,0.00017636,2]
[401197634,1768037449769,-216.87423394,0.00017636,2]
[401197635,1768037449780,-229.31905987,0.00017636,2]
[401197636,1768037449790,-150.0,0.0001764,2]
[401197637,1768037449800,-10537.80982193,0.0001764,2]
[401197638,1768037449810,-150.0,0.00017644,2]
[401197639,1768037449820,-150.0,0.00017644,2]
[401197640,1768037449829,-150.0,0.00017644,2]
[401197641,1768037449839,-150.0,0.00017644,2]
[401197642,1768037449850,-171.19946989,0.00017645,2]
[401197643,1768037449859,-189.54348929,0.00017655,2]
[401197644,1768037449869,-255.68743637,0.00017655,2]
[401197645,1768037449879,-178.71892515,0.00017655,2]
[401197646,1768037449889,-216.87423394,0.00017655,2]
[401197647,1768037449900,-229.31905987,0.00017655,2]
[401197648,1768037449910,-150.0,0.00017662,2]
[401197649,1768037449919,-150.0,0.00017667,2]
[401197650,1768037449928,-189.54348929,0.00017673,2]
[401197651,1768037449938,-255.68743637,0.00017673,2]
[401197652,1768037449947,-178.71892515,0.00017673,2]
[401197653,1768037449956,-216.87423394,0.00017673,2]
[401197654,1768037449966,-150.0,0.00017673,2]
[401197655,1768037449977,-229.31905987,0.00017673,2]
[401197656,1768037449987,-189.54348929,0.00017691,2]
[401197657,1768037449997,-255.68743637,0.00017691,2]
[401197658,1768037450008,-178.71892515,0.00017691,2]
[401197659,1768037450018,-216.87423394,0.00017691,2]
[401197660,1768037450028,-229.31905987,0.00017691,2]
[401197661,1768037450038,-1887.20841984,0.00017697,2]
[401197662,1768037450049,-200.0,0.00017699,2]
[401197663,1768037450059,-200.0,0.00017699,2]
[401197664,1768037450069,-200.0,0.00017699,2]
[401197665,1768037450079,-200.0,0.00017699,2]
[401197666,1768037450090,-561.2,0.00017699,2]
[401197667,1768037450100,-150.0,0.000177,2]
[401197668,1768037450110,-189.54348929,0.00017709,2]
[401197669,1768037450120,-255.68743637,0.00017709,2]
[401197670,1768037450130,-178.71892515,0.00017709,2]
[401197671,1768037450144,-216.87423394,0.00017709,2]
[401197672,1768037450155,-229.31905987,0.00017709,2]
[401197673,1768037450165,-150.0,0.00017714,2]
[401197674,1768037450175,-4820.0,0.00017714,2]
[401197675,1768037450185,-161.659,0.00017714,2]
[401197676,1768037450195,-1406.895,0.00017714,2]
[401197677,1768037450206,-189.54348929,0.00017727,2]
[401197678,1768037450216,-255.68743637,0.00017727,2]
[401197679,1768037450226,-178.71892515,0.00017727,2]
[401197680,1768037450236,-216.87423394,0.00017727,2]
[401197681,1768037450246,-229.31905987,0.00017727,2]
[401197682,1768037450256,-1514.73825484,0.00017728,2]
[401197683,1768037450266,-2464.03631718,0.00017728,2]
[401197684,1768037450279,-3479.95468316,0.00017728,2]
[401197685,1768037450289,-4502.9853,0.00017728,2]
[401197686,1768037450298,-7554.21886386,0.0001773,2]
[401197687,1768037450308,-150.0,0.00017733,2]
[401197688,1768037450319,-1000.0,0.00017742,2]
[401197689,1768037450330,-1000.0,0.00017745,2]
[401197690,1768037450346,-189.54348929,0.00017745,2]
[401197691,1768037450357,-255.68743637,0.00017745,2]
[401197692,1768037450368,-178.71892515,0.00017745,2]
[401197693,1768037450382,-216.87423394,0.00017745,2]
[401197694,1768037450395,-229.31905987,0.00017745,2]
[401197695,1768037450407,-1000.0,0.00017752,2]
[401197696,1768037450419,-13000.4462833,0.00017753,2]
[401197697,1768037450430,-150.0,0.00017755,2]
[401197698,1768037450441,-1000.0,0.00017757,2]
[401197699,1768037450452,-1000.0,0.00017758,2]
[401197700,1768037450463,-1000.0,0.00017762,2]
[401197701,1768037450476,-189.54348929,0.00017764,2]
[401197702,1768037450488,-255.68743637,0.00017764,2]
[401197703,1768037450499,-178.71892515,0.00017764,2]
[401197704,1768037450511,-216.87423394,0.00017764,2]
[401197705,1768037450524,-229.31905987,0.00017764,2]
[401197706,1768037450540,-1000.0,0.00017773,2]
[401197707,1768037450551,-561.2,0.00017774,2]
[401197708,1768037450562,-150.0,0.00017775,2]
[401197709,1768037450572,-1000.0,0.00017777,2]
[401197710,1768037450584,-1000.0,0.00017778,2]
[401197711,1768037450596,-189.54348929,0.00017782,2]
[401197712,1768037450606,-255.68743637,0.00017782,2]
[401197713,1768037450617,-178.71892515,0.00017782,2]
[401197714,1768037450627,-216.87423394,0.00017782,2]
[401197715,1768037450639,-229.31905987,0.00017782,2]
[401197716,1768037450650,-623.0,0.00017792,2]
[401197717,1768037450661,-150.0,0.00017795,2]
[401197718,1768037450672,-1000.0,0.000178,2]
[401197719,1768037450684,-189.54348929,0.000178,2]
[401197720,1768037450694,-255.68743637,0.000178,2]
[401197721,1768037450706,-178.71892515,0.000178,2]
[401197722,1768037450719,-216.87423394,0.000178,2]
[401197723,1768037450729,-150.0,0.000178,2]
[401197724,1768037450740,-150.0,0.000178,2]
[401197725,1768037450751,-229.31905987,0.000178,2]
[401197726,1768037450764,-1000.0,0.00017802,2]
[401197727,1768037450776,-1000.0,0.00017802,2]
[401197728,1768037450787,-500.0,0.00017808,2]
[401197729,1768037450798,-207.26988174,0.00017808,2]
[401197730,1768037450808,-1000.0,0.0001781,2]
[401197731,1768037450819,-1000.0,0.00017818,2]
[401197732,1768037450831,-189.54348929,0.00017818,2]
[401197733,1768037450842,-255.68743637,0.00017818,2]
[401197734,1768037450852,-178.71892515,0.00017818,2]
[401197735,1768037450863,-216.87423394,0.00017818,2]
[401197736,1768037450873,-229.31905987,0.00017818,2]
[401197737,1768037450884,-10000.0,0.0001782,2]
[401197738,1768037450895,-10000.0,0.0001782,2]
[401197739,1768037450907,-159.35537069,0.0001782,2]
[401197740,1768037450920,-197.10546287,0.0001782,2]
[401197741,1768037450932,-153.2779573,0.0001782,2]
[401197742,1768037450942,-533.88981491,0.0001782,2]
[401197743,1768037450952,-1000.0,0.00017823,2]
[401197744,1768037450963,-1000.0,0.00017823,2]
[401197745,1768037450974,-1000.0,0.00017826,2]
[401197746,1768037450985,-24666.13896743,0.0001783,2]